Cogmind - Beta 17 @@@ ROGUE MODE // 2026.07.04 @ 16:07:37 Player: DreamCore Result: Destroyed by GE-AQM(R) with Subdweller Shrapnel Launcher Performance ------------- Evolutions (0) 0 Regions Visited (2) 400 Robots Destroyed (26) 130 Value Destroyed (569) 569 Prototype IDs (2) 40 Alien Tech Used (0) 0 Bonus (0) 0 TOTAL SCORE: 1139 Bonus ------- None Cogmind --------- Core Integrity 0/250 Matter 148/300 Energy 250/250 System Corruption 0% Temperature Cool (0) Movement Treading (240) Ox1 Location -10/Subcaves Parts ------- > --- POWER (1) -------- Ion Engine > --- PROPULSION (2) --- Light Treads > --- UTILITY (2) ------ Large Storage Unit Targeting Computer > --- WEAPON (2) ------- Assault Rifle > --- INVENTORY (15) --- Light Treads Compact Wheel Improved Heat Sink Small Storage Unit Large Storage Unit Sensor Array Improved Terrain Scanner Propulsion Shielding Light Armor Plating Light Armor Plating Makeshift System Shield Peak State ------------ > --- POWER ------------ Light Nuclear Core > --- PROPULSION ------- Light Treads Light Treads > --- UTILITY ---------- Large Storage Unit Targeting Computer > --- WEAPON ----------- Battle Rifle Subdweller Machine Gun > --- INVENTORY -------- Ion Engine Light Treads Light Treads Compact Wheel Improved Heat Sink Small Storage Unit Large Storage Unit Sensor Array Sensor Array Improved Terrain Scanner Propulsion Shielding Light Armor Plating Light Armor Plating Assault Rifle Battle Rifle [Rating: 13] Favorites ----------- Power Light Nuclear Core Engine Light Ion Engine Power Core Light Nuclear Core Propulsion Light Treads Treads Light Treads Leg Aluminum Leg Utility Large Storage Unit Device Improved Terrain Scanner Storage Large Storage Unit Processor Targeting Computer Weapon Assault Rifle Energy Gun Medium Laser Ballistic Gun Assault Rifle Build | -11 -10 -10 ------- Run | Yrd Mat Sub Slots Evolved . | . . . Power . | . . . Propulsion . | . . . Utility . | . . . Weapon . | . . . Parts Attached 19 | 1 14 4 Power 2 | . 1 1 Engine 1 | . . 1 Core 1 | . 1 . Reactor . | . . . Propulsion 4 | . 4 . Treads 4 | . 4 . Leg . | . . . Wheel . | . . . Hover . | . . . Flight . | . . . Utility 6 | 1 5 . Device 2 | 1 1 . Storage 3 | . 3 . Processor 1 | . 1 . Hackware . | . . . Protection . | . . . Artifact . | . . . Weapon 7 | . 4 3 Energy Gun 1 | . 1 . Energy Cannon . | . . . Ballistic Gun 6 | . 3 3 Ballistic Cannon . | . . . Launcher . | . . . Special Weapon . | . . . Impact Weapon . | . . . Slashing Weapon . | . . . Piercing Weapon . | . . . Special Melee Weapon . | . . . Unidentified Prototypes . | . . . Parts Lost 5 | . . 5 Power 1 | . . 1 Propulsion 2 | . . 2 Utility . | . . . Weapon 2 | . . 2 Highest Loss Streak 3 | . . 3 To Critical Strikes . | . . . Average Backups 13 | 6 12 14 Power 1 | 1 1 . Propulsion 3 | 4 3 2 Utility 7 | . 6 8 Weapon 1 | 1 1 1 Tool/Special . | . . . Unused Backups 17 | 6 3 8 Power 3 | 1 2 . Propulsion 4 | 2 1 1 Utility 7 | 1 . 6 Weapon 3 | 2 . 1 Tool/Special . | . . . Average Slot Usage (%) 99 | . 99 99 Engine 4 | . 7 . Core 9 | . 6 13 Treads 26 | . 25 27 Leg 1 | . 2 . Storage 14 | . 14 14 Processor 12 | . 11 14 Energy Gun 5 | . 7 2 Ballistic Gun 22 | . 20 25 Peak Build Rating 13 | 9 10 13 Average Rating 10 | 7 9 11 On Entrance 8 | 6 9 10 Avg Prop Armor Cover (%) . | . . . Naked Turns . | . . . Heaviest Build 46 | 12 46 31 Greatest Support 40 | 20 40 40 Greatest Overweight (x) 2 | . 2 1 Average Overweight (x) . | . . . Largest Inventory Capacity 15 | 8 15 15 Average Capacity 14 | 8 14 15 Most Carried 15 | 8 15 15 Average Carried 13 | 6 12 14 Final Capacity 15 | 8 15 15 Final Carried 15 | 8 15 11 Class Distribution -------------------- 100% | Mutant Dominant Class ---------------- Mutant | -10/Materials Mutant | -10/Subcaves Resources | -11 -10 -10 ----------- Run | Yrd Mat Sub Matter Collected 681 | 208 418 55 Remotely . | . . . Salvage Created 890 | 68 635 187 Parts 43 | 4 34 5 Haulers Intercepted 2 | . 2 . Recyclers Shooed 1 | . 1 . Parts Field Recycled . | . . . Retrieved Matter . | . . . Parts Self-Destructed 1 | . . 1 Prevented . | . . . Parts Restored . | . . . Kills | -11 -10 -10 ------- Run | Yrd Mat Sub Combat Hostiles Destroyed 18 | . 14 4 Guns 18 | . 14 4 Classes Destroyed 9 | 2 5 2 Worker 1 | . 1 . Tunneler 1 | 1 . . Hauler 2 | . 2 . Recycler 3 | 1 2 . Watcher 1 | . 1 . Swarmer 6 | . 6 . Grunt 8 | . 8 . Sentry 1 | . . 1 Subdweller 3 | . . 3 Best Kill Streak 4 | 2 4 1 Combat Bots Only 3 | . 3 1 Max Kills in Single Turn 1 | 1 1 1 Gunslinging . | . . . Exploded . | . . . Melee . | . . . Uniques/NPCs Destroyed . | . . . Combat | -11 -10 -10 -------- Run | Yrd Mat Sub Hostile Shots Fired 112 | . 69 43 Missed 34 | . 24 10 Hits 78 | . 45 33 Projectile 78 | . 45 33 AOE 1 | . . 1 Critical Strikes 1 | . . 1 Damage Taken 1266 | . 467 799 Core 280 | . 91 189 Absorbed by Shields . | . . . Regen/Repaired (Parts) 92 | . 92 . Core Remaining (%) 100 | 100 . . Volleys Fired 111 | 4 72 35 Largest 2 | 2 2 2 Hottest 70 | 70 70 70 Shots Fired 216 | 8 144 64 Gun 216 | 8 144 64 Cannon . | . . . Launcher . | . . . Special . | . . . Kinetic 181 | 4 121 56 Thermal 35 | 4 23 8 Explosive . | . . . Electromagnetic . | . . . Robot Hit Streak 17 | 3 8 17 Robot Miss Streak 4 | 1 4 2 Penetration Max . | . . . Secondary Targets 3 | . 2 1 Max Gunslinging Chain 1 | . 1 1 Shots Hit Robots 115 | 4 67 44 Core Hits 45 | 3 33 9 Critical Kills . | . . . Critical Parts Destroyed 1 | . 1 . Critical Strikes 3 | . 1 2 Burn 2 | . . 2 Destroy 1 | . 1 . Melee Attacks . | . . . Impact . | . . . Slashing . | . . . Piercing . | . . . Sneak Attacks . | . . . Combat Hostiles . | . . . Follow-up Attacks . | . . . Damage Inflicted 1354 | 42 840 472 Guns 1342 | 42 828 472 Cannons . | . . . Explosions . | . . . Melee . | . . . Ramming 12 | . 12 . Kinetic 1119 | 18 716 385 Thermal 223 | 24 112 87 Explosive . | . . . Electromagnetic . | . . . Impact . | . . . Slashing . | . . . Piercing . | . . . Highest Corruption . | . . . Average Corruption . | . . . Corruption Purged . | . . . Corruption Blocked . | . . . Overload Shots . | . . . Overflow Damage . | . . . Projectiles . | . . . Explosions . | . . . Melee . | . . . Knockbacks . | . . . Impact . | . . . Kinetic . | . . . Secondary . | . . . Self-Inflicted Damage . | . . . Shots . | . . . Rammed 1 | . 1 . Targets Rammed 1 | . 1 . Kicked . | . . . Crushed . | . . . Highest Temperature 75 | 60 75 . Average Temperature 24 | 30 24 . Received Heat Transfer 237 | . 135 102 Siege Activations . | . . . Martial Activations . | . . . Shielding Activations . | . . . Robots Disrupted . | . . . Combat Hostiles . | . . . Robots Corrupted . | . . . Combat Hostiles . | . . . Parts Fried . | . . . Impact Corruptions . | . . . Robots Melted . | . . . Combat Hostiles . | . . . Parts Melted 4 | . 2 2 Heat Transferred 814 | 74 333 407 Parts Sabotaged . | . . . Parts Stolen . | . . . Parts Stripped . | . . . Power Chain Reactions . | . . . Alert | -11 -10 -10 ------- Run | Yrd Mat Sub Maximum Alert Level . | . . . Low Security (%) 100 | 100 100 . Level 1 . | . . . Level 2 . | . . . Level 3 . | . . . Level 4 . | . . . Level 5 . | . . . High Security . | . . . Max Security . | . . . Peak Influence 107 | 10 107 . Initial . | . . . Average 32 | 2 33 . Influence Increases 466 | 10 436 20 Destroy 0b10 Robot/C 300 | . 280 20 Destroy 0b10 Robot/NC 40 | 10 30 . Destroy Leader 66 | . 66 . Successful Hack 43 | . 43 . Destroy Structure 2 | . 2 . Lose Combat Pursuer 15 | . 15 . Influence Decreases 466 | 10 395 61 Entered New Map 21 | . . 21 Time Decay 445 | 10 395 40 Squads Dispatched 2 | . 2 . Investigation 1 | . 1 . Extermination . | . . . Reinforcement 1 | . 1 . Assault . | . . . Garrison . | . . . Intercept . | . . . Searches Triggered . | . . . Construction Impeded . | . . . Haulers Reinforced . | . . . Active Scanning Responses . | . . . Cargo Convoy Interrupts . | . . . Stealth | -11 -10 -10 --------- Run | Yrd Mat Sub Distress Signals 2 | . 2 . Communications Jammed . | . . . Distress Signals . | . . . Times Spotted 29 | . 23 6 Peak Tracking Total 4 | . 4 3 Tactical Retreats 1 | . 1 . Traps | -11 -10 -10 ------- Run | Yrd Mat Sub Traps Triggered 3 | . 1 2 Indirectly . | . . . Trap Hack Attempts . | . . . Triggered . | . . . Disarmed . | . . . Reprogrammed . | . . . Reused . | . . . Traps Extracted . | . . . Installed . | . . . Triggered . | . . . Machines | -11 -10 -10 ---------- Run | Yrd Mat Sub Machines Disabled . | . . . Max in Single Turn . | . . . Machines Repaired . | . . . Machines Dismantled . | . . . Machines Sabotaged . | . . . Overloaded Fab Kills . | . . . Hacking | -11 -10 -10 --------- Run | Yrd Mat Sub Machines Accessed 8 | . 8 . Terminals 6 | . 6 . Fabricators . | . . . Repair Stations 1 | . 1 . Recycling Units 1 | . 1 . Scanalyzers . | . . . Garrison Access . | . . . Total Hacks 24 | . 24 . Successful 15 | . 15 . Failed 9 | . 9 . Catastrophic 1 | . 1 . Database Lockouts . | . . . Manual 13 | . 13 . Terminals 16 | . 16 . Fabricators . | . . . Repair Stations 4 | . 4 . Recycling Units 4 | . 4 . Scanalyzers . | . . . Garrison Access . | . . . Terminal Hacks 6 | . 6 . Robot Analysis 3 | . 3 . Prototype ID Bank 1 | . 1 . Locate Traps 1 | . 1 . Dispatch Records 1 | . 1 . Fabricator Hacks . | . . . Repair Station Hacks 2 | . 2 . Scan Component 1 | . 1 . Repair 1 | . 1 . Recycling Unit Hacks 2 | . 2 . Report Inventory 1 | . 1 . Retrieve Components 1 | . 1 . Scanalyzer . | . . . Garrison Access Hacks . | . . . Unauthorized Hacks 5 | . 5 . Terminals 4 | . 4 . Track 1 | . 1 . Botnet 3 | . 3 . Fabricators . | . . . Repair Stations . | . . . Recycling Units 1 | . 1 . Reject 1 | . 1 . Scanalyzers . | . . . Garrison Access . | . . . Data Cores Recovered . | . . . Used . | . . . Hacking Detections 7 | . 7 . Full Trace Events . | . . . Feedback Events . | . . . Feedback Blocked . | . . . Robot Schematics Acquired . | . . . Robots Built . | . . . Authchips . | . . . Time . | . . . Total Robot Build Rating . | . . . Part Schematics Acquired . | . . . Parts Built . | . . . Authchips . | . . . Time . | . . . Total Part Build Rating . | . . . Part Studies Acquired . | . . . Parts Repaired 1 | . 1 . Time 13 | . 13 . Parts Recycled . | . . . Recycled Matter . | . . . Retrieved Matter . | . . . Retrieved Components 9 | . 9 . Parts Scanalyzed . | . . . Part Schematics Acquired . | . . . Parts Damaged . | . . . Bothacking | -11 -10 -10 ------------ Run | Yrd Mat Sub Used RIF Installer . | . . . Robots Hacked . | . . . Non-combat . | . . . Combat . | . . . Robot Hacks Applied . | . . . Relay Couplers Released . | . . . Fabnet Peak Effective % . | . . . Robots Rewired . | . . . Allies Hacked . | . . . Hacks Repelled . | . . . Allies | -11 -10 -10 -------- Run | Yrd Mat Sub Total Allies . | . . . Largest Group . | . . . Highest-Rated Group . | . . . Highest-Rated Ally . | . . . Total Orders . | . . . Ally Attacks . | . . . Total Damage . | . . . Kills . | . . . Allies Corrupted . | . . . Allies Melted . | . . . Intel | -11 -10 -10 ------- Run | Yrd Mat Sub Active Infowar (turns) 197 | 22 175 . Sensors 19 | . 19 . Terrain 178 | 22 156 . Robot Analysis Total 3 | . 3 . Derelict Logs Recovered 1 | . . 1 Drone Launches . | . . . Drone Recoveries . | . . . Exploration | -11 -10 -10 ------------- Run | Yrd Mat Sub Turns Passed 2967 | 46 1653 1268 Spaces Moved 1628 | 27 884 717 Core . | . . . Treads 1482 | . 765 717 Legs 146 | 27 119 . Wheels . | . . . Hover . | . . . Flight . | . . . Fastest Speed 120 | 120 120 160 Average Speed 157 | 120 155 160 Slowest Speed 260 | 120 260 240 Overloaded Moves . | . . . Propulsion Burnouts . | . . . Robots Hopped . | . . . Potential Cave-ins . | . . . Cave-ins Triggered . | . . . Exploration Rate (%) 46 | 3 95 40 Regions Visited 2 Branch Regions 1 Pre-discovered Areas . | . . . Known Exits Taken . | . . . Unknown Exits Taken 2 | 1 1 . Scrap Searched 3 | . . 3 Spaces Dug . | . . . Terrain Destroyed . | . . . Melee . | . . . Projectile . | . . . AOE . | . . . Terrain Rammed . | . . . Walls Destroyed . | . . . Machines Disabled . | . . . Actions | -11 -10 -10 --------- Run | Yrd Mat Sub Total 1833 | 33 1027 773 Wait 33 | . 29 4 Move 1626 | 26 883 717 Hop . | . . . Pick Up 17 | 2 11 4 Fast Attach 5 | 1 4 . Attach 5 | . 1 4 Detach 3 | . 3 . Swap 13 | . 10 3 Drop 19 | . 13 6 Fire 111 | 4 72 35 Melee . | . . . Ram . | . . . Kick . | . . . Crush 1 | . 1 . Escape Stasis . | . . . Rewire . | . . . Trap . | . . . Miscellaneous . | . . . Route ------- -11/Scrapyard -10/Materials (discovered 4 exits: [*Mat x2] / [*Min] / [*Sub]) -10/Subcaves History --------- Turn | Location | Event 13 | -11/Scrapyard | Discovered new exit (range 3) 47 | -11/Scrapyard | Entered Materials 314 | -10/Materials | Build established: Mutant 439 | -10/Materials | Discovered new exit (range 7) 453 | -10/Materials | Discovered new exit (range 15) 1086 | -10/Materials | Repaired Lgt. Treads 1583 | -10/Materials | Discovered new exit (range 9) 1653 | -10/Materials | Discovered new exit (range 11) 1700 | -10/Materials | Entered Subcaves 1852 | -10/Subcaves | Disturbed a concealed Subdweller 1854 | -10/Subcaves | Core integrity fell below 50% 2262 | -10/Subcaves | Shifting Twisted Machinery released Mak. System Shield 2309 | -10/Subcaves | Shifting Twisted Machinery released Battle Cannon 2407 | -10/Subcaves | A swath of the cavern ceiling suddenly collapsed 2817 | -10/Subcaves | Learned Materials garrison access intel 2934 | -10/Subcaves | Lost 3 parts (1p1n1w) 2952 | -10/Subcaves | Core integrity fell below 20% 2968 | -10/Subcaves | Destroyed by GE-AQM(R) with Subdweller Shrapnel Launcher Last Messages --------------- 02384_ Acquired 11 matter. A swath of the cavern ceiling suddenly collapses. 02722_ Sub. Machine Gun shoots sparks and powers down. 02727_ Dropped Broken Sub. Machine Gun. 02734_ Subatomizers dissect the Broken Sub. Machine Gun. 02817_ Acquired derelict log, extracted data. Data stored: Materials garrison access intel. 02872_ Lgt. Nuclear Core destroyed. 02874_ Battle Rifle destroyed. 02903_ Lgt. Treads destroyed. 02921_ Q9-5Z9(R) destroyed. 02921_ Switching to secondary target: H2-VQC(R). 02936_ H2-VQC(R) affixes Scrap Shield Fragment to Scrap Shield. 02943_ Subatomizers dissect the Sub. Optics. 02949_ Battle Rifle destroyed. 02954_ Subatomizers dissect the Sub. Optics. 02955_ Lgt. Treads destroyed. 02957_ Sub. Monowheel melted. 02957_ H2-VQC(R) destroyed. 02965_ Subatomizers dissect the Sub. Optics. Map ----- +----------------------------------------------------+ | ?##???### ## ##?????? #??????????????????? | | ##"""##" # # ##???????## ##??????????????????? | | "" "" [ ## # #?####????? #??????????????????? | | " " """" ## # #?# ##????????????????????????? | | """ " ""### # #?# ##???????????????????????? | | # "" ""#### #### ##??????????????????????? | | #########??### ### ##?????????????????????? | | ??????????### #?????????????????????? | | ??????????# #?????????????????????? | | ??????????# #?????????????????????? | | ??????????# #?????????????????????? | | ??????????# ## ###?????????????????????? | | ??????????#### ## ##???????????????????????? | | ?????????????## #####????????????????????????? | | ??????????????# ##???????????????????????????? | | ??????????????## ##??????????????????????????? | | ???????????????### ##?????????????????????????? | | ?????????????????## ##????????????????????????? | | ??????????????????## ##???????????????????????? | | ???????????????????# ##??????????????????????? | | ???????????????????# #??????????????????????? | | ???????????????????## #??????????????????????? | | ????????????????????## ###????????????????????? | | ?????????????????????# #????????????????????? | | ?????????????????????# ##????????????????????? | | ?????????????????????# !@ #?????????????????????? | | ?????????????????????####%*#?????????????????????? | | ??????????????????###### &[##????????????????????? | | ??????????????????# ###R #????????????????????? | | ???????????????????# ### #####?????????????????? | | ???????????????????## ##????????????????? | | ????????????????????# #????????????????? | | ????????????????????#### #????????????????? | | ??????????????????###### ##????????????????? | | ??????????????????# ## #?????????????????? | | ??????????????????# ###???????????????? | | ??????????????????# #???????????????? | | ??????????????????# #### #??????????????? | | ??????????????????## ###???# #?????????????? | | ???????????????????## ##????? #?????????????? | | ????????????????????# ## #????????????? | | ????????????????????## #???????????? | | ?????????????????????## " ????????????? | | ??????????????????????##### ####"" ??????????? | | ????????????????????????????##???????????????????? | | ?????????????????????????????????????????????????? | | ?????????????????????????????????????????????????? | | ?????????????????????????????????????????????????? | | ?????????????????????????????????????????????????? | | ?????????????????????????????????????????????????? | +----------------------------------------------------+ Best States ------------- Heat Dissipation 25 Energy Generation 14 Energy Capacity 250 Matter Stores 300 Matter Capacity 300 Sight Range 16 Robot Scan Range 14 Terrain Scan Range 16 Terrain Scan Density 10 Evasion (%) 55 Targeting Accuracy 5 Recoil Reduction 2 Item Schematics ----------------- None Robot Schematics ------------------ None Fabricated ------------ Nothing Repaired ---------- Lgt. Treads | 34% | -10/Materials Studied --------- None Alien Tech Used ----------------- None Achievements -------------- None Challenges ------------ None Game ------ Seed CobblerCombatField Manual? 0 Play Time 00:34:40 Cumulative 85.1 hours Start 2026.07.04 @ 15:32:24 End 2026.07.04 @ 16:07:37 Sessions 1 Manual Loads 0 Difficulty Rogue Special Mode None Game No. 93 Rogue 93 Adventurer 0 Explorer 0 Win Type - Total 2 Types 2/0/0/0/0/0/0/0/0/0 Lore% 34 Gallery% 37 Achievement% 34 Wizard Run 0 Options --------- Layout 0 ASCII 0 Keyboard 1 Movement Arrows Keybinds 0 Fullscreen 0 Font 20/Smallcaps Map View 76x50 Zoom Use 0% Tactical HUD 1 Map Filters NONE Filters NONE Steam 1 RUN: b479cf6d-70b2-45d7-a7ae-79394f40a73d